Workbook

Sheet Invoice
A2: "N" Fruit Supplier
A3: GST INVOICE
A4: Invoice No | C4: 2 | D4: State Code | F4: ON | H4: Date | J4: =TODAY() -> 2022-01-25
A5: SHIP TO | G5: BILL FROM
A6: =IFERROR(VLOOKUP($B$9,Customer!$B$5:$E$10,2,FALSE),"") -> Z | G6: "N" Fruit Supplier
A7: =IFERROR(VLOOKUP($B$9,Customer!$B$5:$E$10,3,FALSE),"") -> Kingston | G7: Ottawa, Ontario
A8: =IFERROR(VLOOKUP($B$9,Customer!$B$5:$E$10,4,FALSE),"") -> +14378863136 | G8: Contect Number: +14378862659
A9: GSTIN | B9: ONFSDCXXXX5D1ZR | G9: GSTIN | H9: ONAACXXXX5D1ET
A11: Serial | B11: HSN Code | C11: Product | D11: Qty | E11: Unit Price | F11: Amount | G11: Taxable Amount | H11: CGST | J11: SGST
H12: Rate | I12: Amount | J12: Rate | K12: Amount
A13: 1 | B13: 801 | C13: =IFERROR(VLOOKUP(B13,product!B5:F9,2,FALSE),"") -> Coconut | D13: 200 | E13: =IFERROR(VLOOKUP(B13,product!B5:F9,3,FALSE),"") -> 5 | F13: =D13*E13 -> 1000 | G13: =I13+K13 -> 70 | H13: =IFERROR(VLOOKUP(B13,product!B5:F9,4,FALSE),"") -> 0.03 | I13: =F13*H13 -> 30 | J13: =IFERROR(VLOOKUP(B13,product!B5:F9,5,FALSE),"") -> 0.04 | K13: =F13*J13 -> 40
A14: 2 | B14: 810 | C14: =IFERROR(VLOOKUP(B14,product!B6:F10,2,FALSE),"") -> Kiwi | D14: 500 | E14: =IFERROR(VLOOKUP(B14,product!B6:F10,3,FALSE),"") -> 3 | F14: =D14*E14 -> 1500 | G14: =I14+K14 -> 90 | H14: =IFERROR(VLOOKUP(B14,product!B6:F10,4,FALSE),"") -> 0.02 | I14: =F14*H14 -> 30 | J14: =IFERROR(VLOOKUP(B14,product!B6:F10,5,FALSE),"") -> 0.04 | K14: =F14*J14 -> 60
A15: 3 | B15: 807 | C15: =IFERROR(VLOOKUP(B15,product!B7:F11,2,FALSE),"") -> Watermelon | D15: 300 | E15: =IFERROR(VLOOKUP(B15,product!B7:F11,3,FALSE),"") -> 7 | F15: 2100 | G15: 231 | H15: =IFERROR(VLOOKUP(B15,product!B7:F11,4,FALSE),"") -> 0.05 | I15: 105 | J15: =IFERROR(VLOOKUP(B15,product!B7:F11,5,FALSE),"") -> 0.06 | K15: 126
A16: 4 | B16: 808 | C16: =IFERROR(VLOOKUP(B16,product!B8:F12,2,FALSE),"") -> Apple | D16: 798 | E16: =IFERROR(VLOOKUP(B16,product!B8:F12,3,FALSE),"") -> 4 | F16: 3192 | G16: 255.36 | H16: =IFERROR(VLOOKUP(B16,product!B8:F12,4,FALSE),"") -> 0.04 | I16: 127.68 | J16: =IFERROR(VLOOKUP(B16,product!B8:F12,5,FALSE),"") -> 0.04 | K16: 127.68
A17: 5 | B17: 809 | C17: =IFERROR(VLOOKUP(B17,product!B9:F13,2,FALSE),"") -> Apricot | D17: 570 | E17: =IFERROR(VLOOKUP(B17,product!B9:F13,3,FALSE),"") -> 3 | F17: 1710 | G17: 188.1 | H17: =IFERROR(VLOOKUP(B17,product!B9:F13,4,FALSE),"") -> 0.05 | I17: 85.5 | J17: =IFERROR(VLOOKUP(B17,product!B9:F13,5,FALSE),"") -> 0.06 | K17: 102.6
A18: Total Amount
A19: Amount | F19: =SUM(F13:F17) -> 9502
A20: CGST | F20: =SUM(I13:I17) -> 378.18
A21: SGST | F21: =SUM(K13:K17) -> 456.28
A22: Total Amount | F22: =SUM(F19:K21) -> 10336.46
A23: Bank Details
A24: A/C Name | C24: Michael James | H24: Sign…......................................
A25: A/C No. | C25: 0034567
A26: Terms & Conditions:-
T28: l

Sheet product
B2: Product Details
B4: HSN Code | C4: Product Name | D4: Unit Price | E4: CGST | F4: SGST
B5: 801 | C5: Coconut | D5: 5 | E5: 0.03 | F5: 0.04
B6: 810 | C6: Kiwi | D6: 3 | E6: 0.02 | F6: 0.04
B7: 807 | C7: Watermelon | D7: 7 | E7: 0.05 | F7: 0.06
B8: 808 | C8: Apple | D8: 4 | E8: 0.04 | F8: 0.04
B9: 809 | C9: Apricot | D9: 3 | E9: 0.05 | F9: 0.06

Sheet Customer
B2: Company Details
B4: GSTIN | C4: Company Name | D4: Area | E4: Contact No
B5: ONAAACXXXX5D1Z4 | C5: X | D5: Windsor | E5: +14378863164
B6: ONXCACXXXX5D1ZY | C6: Y | D6: Toronto | E6: +14378861224
B7: ONFSDCXXXX5D1ZR | C7: Z | D7: Kingston | E7: +14378863136
B8: ONAAACXXXX5D1E5 | C8: A | D8: Thunder Bay | E8: +14378862847
B9: ONAAACXXXX5D169 | C9: B | D9: Ottawa | E9: +14378863124
B10: ONAAACXXXX5D1G6 | C10: C | D10: Sarnia | E10: +14378862656
